fUST/lending_fUST_20241201
["ID","MTS","AMOUNT","RATE_DAILY","PERIOD"]
[343890522,1733003444192,-549.52,0.00024657,3]
[343890523,1733003444201,-500.0,0.00024657,3]
[343890524,1733003444210,-500.0,0.00024657,3]
[343890525,1733003444220,-500.0,0.00024657,3]
[343890526,1733003444230,-500.0,0.00024657,3]
[343890527,1733003444239,-489.76050072,0.00024657,3]
[343890528,1733003444249,-500.0,0.00024657,3]
[343890529,1733003444259,-500.0,0.00024657,3]
[343890530,1733003444268,-530.41463184,0.00024657,3]
[343890531,1733003444277,-500.0,0.00024657,3]
[343890532,1733003444287,-500.0,0.00024657,3]
[343890533,1733003444299,-500.0,0.00024657,3]
[343890534,1733003444309,-500.0,0.00024657,3]
[343890535,1733003444318,-500.0,0.00024657,3]
[343890536,1733003444328,-500.0,0.00024657,3]
[343890537,1733003444338,-500.0,0.00024657,3]
[343890538,1733003444347,-500.0,0.00024657,3]
[343890539,1733003444356,-500.0,0.00024657,3]
[343890540,1733003444366,-769.33,0.00024657,3]
[343890541,1733003444375,-500.0,0.00024657,3]
[343890542,1733003444385,-500.0,0.00024657,3]
[343890543,1733003444395,-500.0,0.00024657,3]
[343890544,1733003444404,-500.0,0.00024657,3]
[343890545,1733003444414,-500.0,0.00024657,3]
[343890546,1733003444423,-500.0,0.00024657,3]
[343890547,1733003444432,-500.0,0.00024657,3]
[343890548,1733003444441,-500.0,0.00024657,3]
[343890549,1733003444451,-503.82303779,0.00024657,3]
[343890550,1733003444461,-485.70718759,0.00024657,3]
[343890551,1733003444472,-530.56235586,0.00024657,3]
[343890552,1733003444485,-500.0,0.00024657,3]
[343890553,1733003444494,-807.37,0.00024657,3]
[343890554,1733003444503,-530.11,0.00024657,3]
[343890555,1733003444515,-504.37876988,0.00024657,3]
[343890556,1733003444525,-506.47983358,0.00024657,3]
[343890557,1733003444535,-481.28188634,0.00024657,3]
[343890558,1733003444544,-1071.47,0.00024657,3]
[343890559,1733003444554,-500.0,0.00024657,3]
[343890560,1733003444564,-500.0,0.00024657,3]
[343890561,1733003444574,-461.53771255,0.00024657,3]
[343890562,1733003444584,-957.8,0.00024657,3]
[343890563,1733003444596,-500.0,0.00024657,3]
[343890564,1733003444606,-500.0,0.00024657,3]
[343890565,1733003444616,-500.0,0.00024657,3]
[343890566,1733003444626,-245.65367203,0.00024657,3]
[343890567,1733003444636,-500.0,0.00024657,3]
[343890568,1733003444646,-508.77732719,0.00024657,3]
[343890569,1733003444656,-1016.82,0.00024657,3]
[343890570,1733003444665,-500.0,0.00024657,3]
[343890571,1733003444675,-500.0,0.00024657,3]
[343890572,1733003444685,-979.87,0.00024657,3]
[343890573,1733003444695,-500.0,0.00024657,3]
[343890574,1733003444705,-500.0,0.00024657,3]
[343890575,1733003444714,-2396.87,0.00024657,3]
[343890576,1733003444724,-500.0,0.00024657,3]
[343890577,1733003444734,-500.0,0.00024657,3]
[343890578,1733003444743,-505.45413055,0.00024657,3]
[343890579,1733003444752,-500.0,0.00024657,3]
[343890580,1733003444761,-500.0,0.00024657,3]
[343890581,1733003444771,-256.590253,0.00024657,7]
[343890582,1733003444781,-500.0,0.00024657,3]
[343890583,1733003444790,-550.5074064,0.00024657,3]
[343890584,1733003444799,-1543.2,0.00024657,3]
[343890585,1733003444810,-500.0,0.00024657,3]
[343890586,1733003444819,-500.0,0.00024657,3]
[343890587,1733003444828,-500.0,0.00024657,3]
[343890588,1733003444839,-500.0,0.00024657,3]
[343890589,1733003444848,-500.0,0.00024657,3]
[343890590,1733003444857,-500.0,0.00024657,3]
[343890591,1733003444866,-922.68,0.00024657,3]
[343890592,1733003444876,-504.50824105,0.00024657,3]
[343890593,1733003444885,-500.0,0.00024657,3]
[343890594,1733003444895,-500.0,0.00024657,3]
[343890595,1733003444905,-500.0,0.00024657,3]
[343890596,1733003444915,-500.0,0.00024657,3]
[343890597,1733003444925,-500.0,0.00024657,3]
[343890598,1733003444935,-694.05,0.00024657,3]
[343890599,1733003444944,-220.846984,0.00024657,7]
[343890600,1733003444954,-500.0,0.00024657,3]
[343890601,1733003444963,-500.0,0.00024657,3]
[343890602,1733003444973,-220.846984,0.00024657,7]
[343890603,1733003444984,-685.23,0.00024657,3]
[343890604,1733003444994,-502.03829316,0.00024657,3]
[343890605,1733003445005,-500.0,0.00024657,3]
[343890606,1733003445015,-500.0,0.00024657,3]
[343890607,1733003445025,-500.0,0.00024657,3]
[343890608,1733003445108,-500.0,0.00024657,3]
[343890609,1733003445118,-1777.22,0.00024657,3]
[343890610,1733003445128,-500.0,0.00024657,3]
[343890611,1733003445137,-418.4913316,0.00024657,3]
[343890612,1733003445154,-81.5086684,0.00024657,3]
[343890613,1733003445164,-186.98866237,0.00024657,3]
[343890624,1733003446157,-313.01133763,0.00024657,3]
[343890625,1733003446166,-502.16109218,0.00024657,3]
[343890626,1733003446175,-504.02441228,0.00024657,3]
[343890628,1733003446186,-657.72581164,0.00024657,3]
[343890630,1733003734810,209.951271,0.00024658,120]
[343890631,1733003926971,1000.0,0.00015,2]
[343890634,1733004142512,163.635234,0.00013973,2]
[343890641,1733004263125,294.0,0.00026,60]
[343890661,1733004632321,-195.24752935,0.000199,2]
[343890663,1733004632330,-1169.27083333,0.0002,2]
[343890665,1733004632340,-150.0,0.00021,2]
[343890667,1733004632350,-151.0,0.00022,2]
[343890669,1733004632359,-150.0,0.00022523,2]
[343890671,1733004632368,-150.0,0.00022523,2]
[343890673,1733004632378,-985.218,0.00022523,2]
[343890675,1733004632387,-210.914,0.00022523,2]
[343890677,1733004632397,-300.0,0.00024418,2]
[343890679,1733004632406,-300.0,0.00024418,2]
[343890681,1733004632415,-3438.20485962,0.00024419,2]
[343890683,1733004632424,-4019.76686861,0.00024557,2]
[343890685,1733004632434,-754.18631336,0.00024557,2]
[343890687,1733004632443,-212.7413024,0.000246,2]
[343890690,1733004632453,-218.0,0.0002464,12]
[343890692,1733004632462,-889.91,0.00024647,3]
[343890694,1733004632471,-444.95,0.00024647,3]
[343890696,1733004632483,-222.48,0.00024647,3]
[343890698,1733004632492,-667.46,0.00024647,3]
[343890700,1733004632501,-179.381353,0.00024656,2]
[343890702,1733004632511,-40219.38298632,0.00024657,2]
[343890704,1733004632520,-500.0,0.00024657,3]
[343890706,1733004632529,-1169.27083333,0.00024657,3]
[343890708,1733004632539,-1169.27083333,0.00024657,3]
[343890709,1733004632550,-1169.27083333,0.00024657,3]
[343890711,1733004632559,-500.0,0.00024657,3]
[343890714,1733004632569,-500.0,0.00024657,3]
[343890715,1733004632578,-500.0,0.00024657,3]
[343890726,1733004632665,-500.0,0.00024657,3]
[343890728,1733004632675,-500.0,0.00024657,3]
[343890730,1733004632684,-151.0,0.00024657,7]
[343890731,1733004632693,-151.0,0.00024657,7]
[343890733,1733004632704,-506.35304014,0.00024657,3]
[343890734,1733004632713,-307.0590448,0.00024657,3]
[343890735,1733004632723,-500.0,0.00024657,3]
[343890736,1733004632732,-500.0,0.00024657,3]
[343890737,1733004632741,-500.0,0.00024657,3]
[343890738,1733004632750,-500.0,0.00024657,3]
[343890739,1733004632760,-500.0,0.00024657,3]
[343890740,1733004632769,-500.0,0.00024657,3]
[343890741,1733004632778,-500.0,0.00024657,3]
[343890742,1733004632787,-500.0,0.00024657,3]
[343890743,1733004632796,-500.0,0.00024657,3]
[343890744,1733004632805,-500.0,0.00024657,3]
[343890745,1733004632815,-198.762286,0.00024657,7]
[343890746,1733004632824,-198.762286,0.00024657,7]
[343890747,1733004632833,-500.0,0.00024657,3]
[343890748,1733004632843,-198.762286,0.00024657,7]
[343890749,1733004632852,-198.762286,0.00024657,7]
[343890750,1733004632861,-502.31614398,0.00024657,3]
[343890751,1733004632871,-500.0,0.00024657,3]
[343890752,1733004632881,-500.0,0.00024657,3]
[343890753,1733004632896,-500.49723869,0.00024657,3]
[343890754,1733004632906,-500.0,0.00024657,3]
[343890755,1733004632915,-500.0,0.00024657,3]
[343890756,1733004632925,-380.62566847,0.00024657,3]
[343890757,1733004632934,-506.62841379,0.00024657,3]
[343890758,1733004632944,-500.0,0.00024657,3]
[343890759,1733004632955,-500.0,0.00024657,3]
[343890760,1733004632965,-500.0,0.00024657,3]
[343890761,1733004632974,-500.0,0.00024657,3]
[343890762,1733004632984,-500.0,0.00024657,3]
[343890763,1733004632993,-500.0,0.00024657,3]
[343890764,1733004633003,-500.0,0.00024657,3]
[343890765,1733004633013,-500.0,0.00024657,3]
[343890766,1733004633022,-500.0,0.00024657,3]
[343890767,1733004633031,-500.0,0.00024657,3]
[343890768,1733004633041,-237.88397044,0.00024657,3]
[343890769,1733004633051,-500.0,0.00024657,3]
[343890770,1733004633061,-500.0,0.00024657,3]
[343890771,1733004633070,-500.0,0.00024657,3]
[343890772,1733004633080,-520.3524688,0.00024657,3]
[343890773,1733004633089,-500.0,0.00024657,3]
[343890774,1733004633099,-500.0,0.00024657,3]
[343890775,1733004633109,-500.0,0.00024657,3]
[343890776,1733004633119,-500.0,0.00024657,3]
[343890777,1733004633129,-500.0,0.00024657,3]
[343890778,1733004633139,-500.0,0.00024657,3]
[343890779,1733004633149,-152.300256,0.00024657,7]
[343890780,1733004633158,-500.0,0.00024657,3]
[343890781,1733004633168,-500.0,0.00024657,3]
[343890782,1733004633177,-500.0,0.00024657,3]
[343890783,1733004633187,-1069.12,0.00024657,3]
[343890784,1733004633199,-500.0,0.00024657,3]
[343890785,1733004633208,-500.0,0.00024657,3]
[343890786,1733004633218,-737.28,0.00024657,3]
[343890787,1733004633228,-508.03,0.00024657,3]
[343890788,1733004633237,-500.0,0.00024657,3]
[343890789,1733004633247,-500.0,0.00024657,3]
[343890790,1733004633256,-174.05575716,0.00024657,3]
[343890791,1733004633266,-500.0,0.00024657,3]
[343890792,1733004633275,-1026.82,0.00024657,3]
[343890793,1733004633285,-500.0,0.00024657,3]
[343890794,1733004633295,-500.0,0.00024657,3]
[343890795,1733004633305,-917.89,0.00024657,3]
[343890796,1733004633314,-500.0,0.00024657,3]
[343890797,1733004633324,-500.0,0.00024657,3]
[343890798,1733004633334,-500.0,0.00024657,3]
[343890799,1733004633344,-500.0,0.00024657,3]
[343890800,1733004633353,-504.0256523,0.00024657,3]
[343890801,1733004633363,-542.58843392,0.00024657,3]
[343890802,1733004633372,-500.0,0.00024657,3]
[343890803,1733004633382,-500.0,0.00024657,3]
[343890804,1733004633391,-500.0,0.00024657,3]
[343890805,1733004633401,-500.0,0.00024657,3]
[343890806,1733004633411,-500.0,0.00024657,3]
[343890807,1733004633420,-500.0,0.00024657,3]
[343890808,1733004633430,-500.0,0.00024657,3]
[343890809,1733004633440,-505.33825685,0.00024657,3]
[343890810,1733004633450,-500.0,0.00024657,3]
[343890811,1733004633460,-500.0,0.00024657,3]
[343890812,1733004633471,-500.0,0.00024657,3]
[343890813,1733004633481,-524.7410601,0.00024657,3]
[343890814,1733004633490,-946.45,0.00024657,3]
[343890815,1733004633500,-500.0,0.00024657,3]
[343890816,1733004633509,-500.0,0.00024657,3]
[343890817,1733004633519,-500.0,0.00024657,3]
[343890818,1733004633528,-578.30104402,0.00024657,3]
[343890819,1733004633538,-500.0,0.00024657,3]
[343890820,1733004633547,-507.31445857,0.00024657,3]
[343890821,1733004633556,-493.5774463,0.00024657,3]
[343890822,1733004633566,-501.47038418,0.00024657,3]
[343890823,1733004633575,-502.11942831,0.00024657,3]
[343890824,1733004633585,-500.0,0.00024657,3]
[343890825,1733004633595,-515.88995398,0.00024657,3]
[343890826,1733004633605,-500.0,0.00024657,3]
[343890827,1733004633614,-817.71,0.00024657,3]
[343890828,1733004633623,-626.03812323,0.00024657,3]
[343890829,1733004633633,-500.0,0.00024657,3]
[343890830,1733004633642,-500.0,0.00024657,3]
[343890831,1733004633652,-500.0,0.00024657,3]
[343890832,1733004633662,-500.0,0.00024657,3]
[343890833,1733004633671,-408.77883077,0.00024657,3]
[343890834,1733004633681,-500.0,0.00024657,3]
[343890835,1733004633691,-500.0,0.00024657,3]
[343890836,1733004633701,-2297.0,0.00024657,3]
[343890837,1733004633711,-503.86452425,0.00024657,3]
[343890838,1733004633722,-512.59628358,0.00024657,3]
[343890839,1733004633733,-500.0,0.00024657,3]
[343890840,1733004633743,-552.75104959,0.00024657,3]
[343890841,1733004633752,-663.59,0.00024657,3]
[343890842,1733004633762,-500.0,0.00024657,3]
[343890843,1733004633772,-380.21219122,0.00024657,3]
[343890844,1733004633782,-1478.9,0.00024657,3]
[343890845,1733004633791,-500.0,0.00024657,3]
[343890846,1733004633801,-500.0,0.00024657,3]
[343890847,1733004633811,-1000.0,0.00024657,10]
[343890848,1733004633821,-974.45,0.00024657,3]
[343890849,1733004633831,-503.8286925,0.00024657,3]
[343890850,1733004633841,-500.0,0.00024657,3]
[343890851,1733004633852,-306.76768797,0.00024657,3]
[343890852,1733004633862,-501.89446612,0.00024657,3]
[343890853,1733004633871,-500.0,0.00024657,3]
[343890854,1733004633883,-500.0,0.00024657,3]
[343890855,1733004633899,-504.41921723,0.00024657,3]
[343890856,1733004633973,-884.23,0.00024657,3]
[343890857,1733004633983,-500.0,0.00024657,3]
[343890858,1733004633993,-500.0,0.00024657,3]
[343890859,1733004634003,-500.0,0.00024657,3]
[343890860,1733004634012,-500.0,0.00024657,3]
[343890861,1733004634022,-500.0,0.00024657,3]
[343890862,1733004634032,-500.0,0.00024657,3]
[343890863,1733004634042,-500.0,0.00024657,3]
[343890864,1733004634052,-500.0,0.00024657,3]
[343890865,1733004634061,-500.0,0.00024657,3]
[343890866,1733004634071,-821.66,0.00024657,3]
[343890867,1733004634081,-500.0,0.00024657,3]
[343890868,1733004634091,-500.0,0.00024657,3]
[343890869,1733004634101,-656.68,0.00024657,3]
[343890870,1733004634110,-500.0,0.00024657,3]
[343890871,1733004634120,-359.61780337,0.00024657,3]
[343890872,1733004634130,-518.42094336,0.00024657,3]
[343890873,1733004634139,-200.0,0.00024657,3]
[343890874,1733004634149,-397.53894357,0.00024657,3]
[343890875,1733004634159,-500.0,0.00024657,3]
[343890876,1733004634169,-500.0,0.00024657,3]
[343890877,1733004634179,-500.0,0.00024657,3]
[343890878,1733004634190,-500.0,0.00024657,3]
[343890879,1733004634201,-500.0,0.00024657,3]
[343890880,1733004634217,-504.44167954,0.00024657,3]
[343890881,1733004634227,-500.0,0.00024657,3]
[343890882,1733004634237,-500.0,0.00024657,3]
[343890883,1733004634248,-500.0,0.00024657,3]
[343890884,1733004634258,-500.0,0.00024657,3]
[343890885,1733004634268,-500.0,0.00024657,3]
[343890886,1733004634279,-665.13,0.00024657,3]
[343890887,1733004634289,-500.0,0.00024657,3]
[343890888,1733004634299,-500.0,0.00024657,3]
[343890889,1733004634309,-500.0,0.00024657,3]
[343890890,1733004634319,-500.0,0.00024657,3]
[343890891,1733004634329,-487.43029564,0.00024657,3]
[343890892,1733004634339,-581.04,0.00024657,3]
[343890893,1733004634349,-500.0,0.00024657,3]
[343890894,1733004634359,-500.0,0.00024657,3]
[343890895,1733004634368,-531.93238127,0.00024657,3]
[343890896,1733004634378,-500.0,0.00024657,3]
[343890897,1733004634388,-953.96,0.00024657,3]
[343890898,1733004634397,-1744.41,0.00024657,3]
[343890899,1733004634407,-1703.16,0.00024657,3]
[343890900,1733004634417,-500.0,0.00024657,3]
[343890901,1733004634427,-1189.03,0.00024657,3]
[343890902,1733004634437,-500.0,0.00024657,3]
[343890903,1733004634447,-500.0,0.00024657,3]
[343890904,1733004634457,-500.0,0.00024657,3]
[343890905,1733004634467,-500.0,0.00024657,3]
[343890906,1733004634476,-1534.89,0.00024657,3]
[343890907,1733004634486,-644.18288548,0.00024657,3]
[343890908,1733004634495,-500.0,0.00024657,3]
[343890909,1733004634504,-245.47496454,0.00024657,3]
[343890910,1733004634514,-500.0,0.00024657,3]
[343890911,1733004634523,-500.0,0.00024657,3]
[343890912,1733004634533,-500.0,0.00024657,3]
[343890913,1733004634542,-503.75,0.00024657,3]
[343890914,1733004634551,-500.0,0.00024657,3]
[343890915,1733004634561,-500.0,0.00024657,3]
[343890916,1733004634570,-500.0,0.00024657,3]
[343890917,1733004634580,-350.01632208,0.00024657,3]
[343890918,1733004634590,-489.32408135,0.00024657,3]
[343890919,1733004634604,-503.61460528,0.00024657,3]
[343890920,1733004634617,-500.0,0.00024657,3]
[343890921,1733004634627,-500.0,0.00024657,3]
[343890922,1733004634636,-500.0,0.00024657,3]
[343890923,1733004634646,-561.55,0.00024657,3]
[343890924,1733004634655,-500.0,0.00024657,3]
[343890925,1733004634665,-500.0,0.00024657,3]
[343890926,1733004634675,-526.48331454,0.00024657,3]
[343890927,1733004634685,-200.0,0.00024657,3]
[343890928,1733004634695,-518.70293103,0.00024657,3]
[343890929,1733004634706,-724.23,0.00024657,3]
[343890930,1733004634716,-351.97180097,0.00024657,3]
[343890931,1733004634726,-500.0,0.00024657,3]
[343890932,1733004634735,-515.7145739,0.00024657,3]
[343890933,1733004634745,-583.15,0.00024657,3]
[343890934,1733004634755,-500.0,0.00024657,3]
[343890935,1733004634765,-500.0,0.00024657,3]
[343890936,1733004634775,-500.0,0.00024657,3]
[343890937,1733004634785,-500.0,0.00024657,3]
[343890938,1733004634795,-500.0,0.00024657,3]
[343890939,1733004634805,-500.0,0.00024657,3]
[343890940,1733004634815,-208.8673881,0.00024657,3]
[343890941,1733004634824,-500.0,0.00024657,3]
[343890942,1733004634833,-500.0,0.00024657,3]
[343890943,1733004634843,-2481.72,0.00024657,3]
[343890944,1733004634853,-500.0,0.00024657,2]
[343890945,1733004634863,-500.0,0.00024657,3]
[343890946,1733004634872,-500.0,0.00024657,3]
[343890947,1733004634881,-3056.09,0.00024657,3]
[343890948,1733004634894,-507.92705514,0.00024657,3]
[343890949,1733004634903,-500.0,0.00024657,3]
[343890950,1733004634912,-343.89971308,0.00024657,3]
[343890951,1733004634922,-868.94,0.00024657,3]
[343890952,1733004634931,-500.0,0.00024657,3]
[343890953,1733004634940,-500.0,0.00024657,3]
[343890954,1733004634951,-678.01,0.00024657,3]
[343890955,1733004634961,-500.0,0.00024657,3]
[343890956,1733004634971,-500.0,0.00024657,3]
[343890957,1733004634980,-628.97,0.00024657,3]
[343890958,1733004634990,-1380.11,0.00024657,3]
[343890959,1733004634999,-701.26,0.00024657,3]
[343890960,1733004635009,-500.0,0.00024657,3]
[343890961,1733004635019,-500.0,0.00024657,3]
[343890962,1733004635029,-500.67266789,0.00024657,3]
[343890963,1733004635038,-1174.8,0.00024657,3]
[343890964,1733004635047,-500.0,0.00024657,3]
[343890965,1733004635057,-500.0,0.00024657,3]
[343890966,1733004635066,-500.0,0.00024657,3]
[343890967,1733004635076,-910.31,0.00024657,3]
[343890968,1733004635086,-500.0,0.00024657,3]
[343890969,1733004635095,-151.0,0.00024657,7]
[343890970,1733004635104,-151.0,0.00024657,7]
[343890971,1733004635114,-1495.14,0.00024657,3]
[343890972,1733004635124,-500.0,0.00024657,3]
[343890973,1733004635195,-500.0,0.00024657,3]
[343890974,1733004635207,-500.0,0.00024657,3]
[343890975,1733004635216,-648.85,0.00024657,3]
[343890976,1733004635226,-500.0,0.00024657,3]
[343890977,1733004635235,-500.0,0.00024657,3]
[343890978,1733004635245,-1701.11,0.00024657,3]
[343890979,1733004635255,-500.0,0.00024657,3]
[343890980,1733004635264,-500.0,0.00024657,3]
[343890981,1733004635274,-500.0,0.00024657,3]
[343890982,1733004635283,-500.0,0.00024657,3]
[343890983,1733004635293,-500.0,0.00024657,3]
[343890984,1733004635302,-500.0,0.00024657,3]
[343890985,1733004635311,-500.0,0.00024657,3]
[343890986,1733004635320,-2197.46,0.00024657,3]
[343890987,1733004635330,-725.62,0.00024657,3]
[343890988,1733004635339,-500.0,0.00024657,3]
[343890989,1733004635348,-567.56751086,0.00024657,3]
[343890990,1733004635357,-1063.13,0.00024657,3]
[343890991,1733004635366,-3353.41,0.00024657,3]
[343890992,1733004635375,-500.0,0.00024657,3]
[343890993,1733004635384,-508.4229907,0.00024657,3]
[343890994,1733004635393,-500.0,0.00024657,3]
[343890995,1733004635402,-577.72571443,0.00024657,3]
[343890996,1733004635412,-644.32432801,0.00024657,3]
[343890997,1733004635420,-440.42584179,0.00024657,3]
[343890998,1733004635429,-553.99,0.00024657,3]
[343890999,1733004635438,-507.91723667,0.00024657,3]
[343891000,1733004635447,-504.38302531,0.00024657,3]
[343891001,1733004635458,-500.0,0.00024657,3]
[343891002,1733004635467,-500.0,0.00024657,3]
[343891003,1733004635476,-592.23,0.00024657,3]
[343891004,1733004635485,-500.0,0.00024657,3]
[343891005,1733004635494,-500.0,0.00024657,3]
[343891006,1733004635503,-500.0,0.00024657,3]
[343891007,1733004635512,-500.0,0.00024657,3]
[343891008,1733004635521,-174.219893,0.00024657,7]
[343891009,1733004635530,-174.219893,0.00024657,7]
[343891010,1733004635539,-264.24716709,0.00024657,3]
[343891011,1733004635548,-631.89,0.00024657,3]
[343891012,1733004635557,-174.219893,0.00024657,7]
[343891013,1733004635566,-174.219893,0.00024657,7]
[343891014,1733004635575,-500.0,0.00024657,3]
[343891015,1733004635584,-500.0,0.00024657,3]
[343891016,1733004635593,-500.0,0.00024657,2]
[343891017,1733004635603,-532.17670151,0.00024657,3]
[343891018,1733004635612,-500.0,0.00024657,3]
[343891019,1733004635621,-613.9312375,0.00024657,3]
[343891020,1733004635631,-233.278511,0.00024657,7]
[343891021,1733004635640,-500.0,0.00024657,3]
[343891022,1733004635649,-233.278511,0.00024657,7]
[343891023,1733004635659,-506.25244076,0.00024657,3]
[343891024,1733004635668,-500.0,0.00024657,3]
[343891025,1733004635678,-233.278511,0.00024657,7]
[343891026,1733004635687,-233.278511,0.00024657,7]
[343891027,1733004635697,-500.0,0.00024657,3]
[343891028,1733004635708,-1101.41,0.00024657,2]
[343891029,1733004635717,-500.0,0.00024657,3]
[343891030,1733004635727,-1903.85,0.00024657,3]
[343891031,1733004635737,-500.0,0.00024657,3]
[343891032,1733004635746,-590.86,0.00024657,3]
[343891033,1733004635755,-500.0,0.00024657,3]
[343891034,1733004635764,-500.0,0.00024657,3]
[343891035,1733004635774,-500.0,0.00024657,3]
[343891036,1733004635783,-500.0,0.00024657,3]
[343891037,1733004635792,-500.0,0.00024657,3]
[343891038,1733004635801,-501.14713592,0.00024657,3]
[343891039,1733004635811,-500.0,0.00024657,3]
[343891040,1733004635820,-500.0,0.00024657,3]
[343891041,1733004635829,-500.0,0.00024657,3]
[343891042,1733004635838,-500.0,0.00024657,3]
[343891043,1733004635848,-508.59796121,0.00024657,3]
[343891044,1733004635857,-500.0,0.00024657,3]
[343891045,1733004635866,-503.81636849,0.00024657,3]
[343891046,1733004635875,-542.38,0.00024657,3]
[343891047,1733004635886,-432.3592236,0.00024657,3]
[343891048,1733004635899,-562.24,0.00024657,3]
[343891049,1733004635909,-500.0,0.00024657,3]
[343891050,1733004635919,-505.03149376,0.00024657,3]
[343891051,1733004635928,-500.0,0.00024657,3]
[343891052,1733004635940,-500.0,0.00024657,3]
[343891053,1733004635950,-500.0,0.00024657,3]
[343891054,1733004635960,-1954.29,0.00024657,3]
[343891055,1733004635969,-500.0,0.00024657,3]
[343891056,1733004635979,-787.16,0.00024657,3]
[343891057,1733004635988,-500.0,0.00024657,3]
[343891058,1733004635998,-517.94728591,0.00024657,3]
[343891059,1733004636008,-500.0,0.00024657,3]
[343891060,1733004636017,-502.65,0.00024657,3]
[343891061,1733004636027,-500.0,0.00024657,3]
[343891062,1733004636036,-500.0,0.00024657,3]
[343891063,1733004636046,-500.0,0.00024657,3]
[343891064,1733004636055,-500.0,0.00024657,3]
[343891065,1733004636065,-500.0,0.00024657,3]
[343891066,1733004636075,-505.34606217,0.00024657,3]
[343891067,1733004636085,-500.0,0.00024657,3]
[343891068,1733004636095,-500.0,0.00024657,3]
[343891069,1733004636105,-500.0,0.00024657,3]
[343891070,1733004636114,-500.0,0.00024657,3]
[343891071,1733004636125,-2790.51,0.00024657,3]
[343891072,1733004636135,-500.0,0.00024657,3]
[343891073,1733004636145,-659.06,0.00024657,3]
[343891074,1733004636154,-500.0,0.00024657,3]
[343891075,1733004636164,-500.0,0.00024657,3]
[343891076,1733004636174,-500.80737839,0.00024657,3]
[343891077,1733004636183,-500.0,0.00024657,3]
[343891078,1733004636192,-500.0,0.00024657,3]
[343891079,1733004636202,-500.0,0.00024657,3]
[343891080,1733004636275,-2637.41,0.00024657,3]
[343891081,1733004636285,-500.0,0.00024657,3]
[343891082,1733004636295,-500.0,0.00024657,3]
[343891083,1733004636304,-674.25,0.00024657,3]
[343891084,1733004636313,-500.0,0.00024657,3]
[343891085,1733004636322,-371.01876954,0.00024657,3]
[343891086,1733004636331,-176.31929312,0.00024657,3]
[343891087,1733004636341,-500.0,0.00024657,3]
[343891088,1733004636351,-500.0,0.00024657,3]
[343891089,1733004636360,-500.0,0.00024657,3]
[343891090,1733004636370,-500.0,0.00024657,3]
[343891091,1733004636380,-1701.82,0.00024657,3]
[343891092,1733004636390,-500.0,0.00024657,3]
[343891093,1733004636399,-658.33,0.00024657,3]
[343891094,1733004636409,-756.89,0.00024657,3]
[343891095,1733004636419,-500.0,0.00024657,3]
[343891096,1733004636429,-500.0,0.00024657,3]
[343891097,1733004636451,-500.0,0.00024657,3]
[343891098,1733004636461,-1240.85,0.00024657,3]
[343891099,1733004636471,-500.0,0.00024657,3]
[343891100,1733004636481,-500.0,0.00024657,3]